[Event "*** Titled Tuesday Blitz"]
[Site "Chess.com"]
[Date "2019.08.06"]
[Round "10"]
[White "sergiochess83"]
[Black "GMMarcinDziuba"]
[Result "1-0"]
[WhiteElo "2929"]
[BlackElo "2716"]
[TimeControl "180+2"]
[EndTime "15:20:17 PDT"]
[Termination "sergiochess83 won by resignation"]

1. e4 {[%clk 0:02:59.5]} 1... c6 {[%clk 0:02:53.1]} 2. d4 {[%clk 0:02:59.3]}
2... d5 {[%clk 0:02:54.3]} 3. e5 {[%clk 0:03:00.4]} 3... Bf5 {[%clk 0:02:53.8]}
4. Nf3 {[%clk 0:03:00.6]} 4... e6 {[%clk 0:02:55.1]} 5. Be2 {[%clk 0:03:01.5]}
5... Ne7 {[%clk 0:02:54.7]} 6. O-O {[%clk 0:03:01.5]} 6... c5 {[%clk 0:02:56]}
7. Na3 {[%clk 0:02:51.9]} 7... Nec6 {[%clk 0:02:51.7]} 8. c4 {[%clk 0:02:48]}
8... dxc4 {[%clk 0:02:37.5]} 9. Nxc4 {[%clk 0:02:38.8]} 9... cxd4 {[%clk
0:02:34.9]} 10. Bg5 {[%clk 0:02:37.6]} 10... Be7 {[%clk 0:02:35.8]} 11. Nd6+
{[%clk 0:02:33]} 11... Kf8 {[%clk 0:02:36.9]} 12. Bxe7+ {[%clk 0:02:21.3]} 12...
Qxe7 {[%clk 0:02:22.7]} 13. Nxd4 {[%clk 0:02:03.8]} 13... Nxd4 {[%clk
0:02:18.1]} 14. Qxd4 {[%clk 0:02:04.7]} 14... Nc6 {[%clk 0:02:17.3]} 15. Qe3
{[%clk 0:01:52]} 15... g5 {[%clk 0:01:53.3]} 16. Bf3 {[%clk 0:01:44.4]} 16...
Nd8 {[%clk 0:01:37.9]} 17. Rac1 {[%clk 0:01:37]} 17... Kg7 {[%clk 0:01:35.7]}
18. Nc8 {[%clk 0:01:31.2]} 18... Qb4 {[%clk 0:00:32.5]} 19. Qxg5+ {[%clk
0:01:30.8]} 1-0

[Event "*** Titled Tuesday Blitz"]
[Site "Chess.com"]
[Date "2019.08.06"]
[Round "10"]
[White "pandamaster3000"]
[Black "Vadim_Biliy"]
[Result "1-0"]
[WhiteElo "2307"]
[BlackElo "2206"]
[TimeControl "180+2"]
[EndTime "15:20:19 PDT"]
[Termination "pandamaster3000 won by resignation"]

1. e4 {[%clk 0:03:01.9]} 1... d6 {[%clk 0:03:00]} 2. d4 {[%clk 0:03:03]} 2...
Nf6 {[%clk 0:03:00.8]} 3. Nc3 {[%clk 0:03:04.4]} 3... g6 {[%clk 0:03:00.9]} 4.
Nf3 {[%clk 0:03:05.8]} 4... Bg7 {[%clk 0:02:59.5]} 5. Be2 {[%clk 0:03:07.2]}
5... O-O {[%clk 0:03:00.1]} 6. h3 {[%clk 0:03:04.5]} 6... Nc6 {[%clk 0:02:58.4]}
7. d5 {[%clk 0:03:00.9]} 7... Nb8 {[%clk 0:02:57.3]} 8. O-O {[%clk 0:03:01.6]}
8... c6 {[%clk 0:02:58.2]} 9. Be3 {[%clk 0:02:46.5]} 9... a6 {[%clk 0:02:57.7]}
10. Qd2 {[%clk 0:02:41]} 10... b5 {[%clk 0:02:57.7]} 11. a3 {[%clk 0:02:41.8]}
11... Bb7 {[%clk 0:02:56.4]} 12. Rad1 {[%clk 0:02:41.9]} 12... Qc7 {[%clk
0:02:51.1]} 13. Kh1 {[%clk 0:02:33.8]} 13... Nbd7 {[%clk 0:02:48.7]} 14. Rfe1
{[%clk 0:02:26.4]} 14... Nb6 {[%clk 0:02:48.2]} 15. dxc6 {[%clk 0:01:54.7]}
15... Bxc6 {[%clk 0:02:46.6]} 16. Bd3 {[%clk 0:01:54.7]} 16... Nc4 {[%clk
0:02:40.8]} 17. Bxc4 {[%clk 0:01:42.9]} 17... bxc4 {[%clk 0:02:41.1]} 18. Bd4
{[%clk 0:01:44.5]} 18... e5 {[%clk 0:02:36.2]} 19. Be3 {[%clk 0:01:42.3]} 19...
Rfd8 {[%clk 0:02:28.8]} 20. Bg5 {[%clk 0:01:40.3]} 20... Rd7 {[%clk 0:02:26.7]}
21. Bxf6 {[%clk 0:01:34.3]} 21... Bxf6 {[%clk 0:02:26.6]} 22. Nd5 {[%clk
0:01:36.2]} 22... Bd8 {[%clk 0:02:16.1]} 23. Nxc7 {[%clk 0:01:33.9]} 23... Bxc7
{[%clk 0:02:15.3]} 24. Kg1 {[%clk 0:01:33.1]} 24... Rb8 {[%clk 0:02:14.3]} 25.
Qc3 {[%clk 0:01:33.5]} 25... Bb5 {[%clk 0:02:13.8]} 26. Nd2 {[%clk 0:01:32.8]}
26... Bb6 {[%clk 0:02:12.1]} 27. Nxc4 {[%clk 0:01:30.2]} 27... Rc7 {[%clk
0:02:09.8]} 28. b3 {[%clk 0:01:31.3]} 28... Bd4 {[%clk 0:02:10]} 29. Rxd4 {[%clk
0:01:31]} 29... exd4 {[%clk 0:02:10.3]} 30. Qxd4 {[%clk 0:01:32.9]} 30... Bxc4
{[%clk 0:02:09.8]} 31. bxc4 {[%clk 0:01:34.8]} 31... Rbc8 {[%clk 0:02:08.3]} 32.
Qxd6 {[%clk 0:01:26.7]} 32... Rxc4 {[%clk 0:02:08.9]} 33. e5 {[%clk 0:01:23.7]}
33... Rxc2 {[%clk 0:02:07.4]} 34. e6 {[%clk 0:01:23.8]} 34... fxe6 {[%clk
0:01:59.9]} 35. Qxe6+ {[%clk 0:01:25.7]} 35... Kg7 {[%clk 0:01:59.5]} 36. Qe5+
{[%clk 0:01:22.3]} 36... Kh6 {[%clk 0:01:58.6]} 37. Qf4+ {[%clk 0:01:22.5]} 1-0

[Event "*** Titled Tuesday Blitz"]
[Site "Chess.com"]
[Date "2019.08.06"]
[Round "10"]
[White "12teen"]
[Black "RoelandPruijssers"]
[Result "1-0"]
[WhiteElo "2654"]
[BlackElo "2500"]
[TimeControl "180+2"]
[EndTime "15:20:32 PDT"]
[Termination "12teen won by resignation"]

1. g3 {[%clk 0:03:01.9]} 1... Nf6 {[%clk 0:02:51.7]} 2. Bg2 {[%clk 0:03:03.8]}
2... d5 {[%clk 0:02:52.9]} 3. d3 {[%clk 0:03:05.3]} 3... c6 {[%clk 0:02:54.1]}
4. Nc3 {[%clk 0:03:06.8]} 4... Bg4 {[%clk 0:02:54.4]} 5. h3 {[%clk 0:03:07.2]}
5... Bh5 {[%clk 0:02:54.6]} 6. g4 {[%clk 0:03:09.1]} 6... Bg6 {[%clk 0:02:55.8]}
7. f4 {[%clk 0:03:10.1]} 7... e6 {[%clk 0:02:55.7]} 8. Bd2 {[%clk 0:03:11.2]}
8... d4 {[%clk 0:02:53.1]} 9. Ne4 {[%clk 0:03:11.3]} 9... Nxe4 {[%clk 0:02:54]}
10. dxe4 {[%clk 0:03:13.2]} 10... Qh4+ {[%clk 0:02:54.5]} 11. Kf1 {[%clk
0:03:14.6]} 11... h6 {[%clk 0:02:27.4]} 12. f5 {[%clk 0:02:58.6]} 12... Bh7
{[%clk 0:02:23.1]} 13. Nf3 {[%clk 0:02:55.9]} 13... Qd8 {[%clk 0:02:19.8]} 14.
Bf4 {[%clk 0:02:54.2]} 14... Bc5 {[%clk 0:02:17.7]} 15. Be5 {[%clk 0:02:48.8]}
15... O-O {[%clk 0:02:05.9]} 16. Bxd4 {[%clk 0:02:44.9]} 16... Qb6 {[%clk
0:02:02.7]} 17. Bc3 {[%clk 0:02:21.7]} 17... Na6 {[%clk 0:01:58.9]} 18. a3
{[%clk 0:02:14.1]} 18... Rfd8 {[%clk 0:01:54.1]} 19. Qe1 {[%clk 0:02:14.9]}
19... Be3 {[%clk 0:01:54]} 20. Ne5 {[%clk 0:02:05.3]} 20... Nc5 {[%clk
0:01:46.7]} 21. Nc4 {[%clk 0:01:59.2]} 21... Qc7 {[%clk 0:01:44.9]} 22. Nxe3
{[%clk 0:01:59]} 22... Nxe4 {[%clk 0:01:44.9]} 23. Bxe4 {[%clk 0:01:54.4]} 23...
Qf4+ {[%clk 0:01:46.1]} 24. Bf3 {[%clk 0:01:24.7]} 24... Qxe3 {[%clk 0:01:46.9]}
25. Rg1 {[%clk 0:01:22.3]} 25... e5 {[%clk 0:01:44.4]} 26. Qf2 {[%clk
0:01:16.6]} 26... Qf4 {[%clk 0:01:45]} 27. e3 {[%clk 0:01:10.6]} 27... Qc4+
{[%clk 0:01:45.1]} 28. Be2 {[%clk 0:01:11]} 28... Qc5 {[%clk 0:01:42]} 29. e4
{[%clk 0:01:12.3]} 29... Qe7 {[%clk 0:01:43.3]} 30. h4 {[%clk 0:01:09.4]} 30...
f6 {[%clk 0:01:44.1]} 31. g5 {[%clk 0:01:10.6]} 31... fxg5 {[%clk 0:01:44.6]}
32. hxg5 {[%clk 0:01:12.2]} 32... hxg5 {[%clk 0:01:45.9]} 33. Bc4+ {[%clk
0:01:10.9]} 33... Kf8 {[%clk 0:01:45.2]} 1-0

[Event "*** Titled Tuesday Blitz"]
[Site "Chess.com"]
[Date "2019.08.06"]
[Round "10"]
[White "AbasovN"]
[Black "Atakishiyev04"]
[Result "0-1"]
[WhiteElo "2872"]
[BlackElo "2686"]
[TimeControl "180+2"]
[EndTime "15:21:06 PDT"]
[Termination "Atakishiyev04 won by resignation"]

1. e4 {[%clk 0:03:01.9]} 1... e6 {[%clk 0:03:01.2]} 2. Nf3 {[%clk 0:03:02.4]}
2... d5 {[%clk 0:03:00.7]} 3. exd5 {[%clk 0:03:04.3]} 3... exd5 {[%clk
0:03:01.6]} 4. d4 {[%clk 0:03:06.2]} 4... Nf6 {[%clk 0:03:01.9]} 5. Bd3 {[%clk
0:03:07.4]} 5... Bd6 {[%clk 0:02:58.1]} 6. O-O {[%clk 0:03:08]} 6... O-O {[%clk
0:02:59.1]} 7. h3 {[%clk 0:03:09.2]} 7... Re8 {[%clk 0:02:58.1]} 8. c4 {[%clk
0:03:08.6]} 8... dxc4 {[%clk 0:02:57.7]} 9. Bxc4 {[%clk 0:03:10.5]} 9... Nc6
{[%clk 0:02:58.5]} 10. Nc3 {[%clk 0:03:10]} 10... Bf5 {[%clk 0:02:59.9]} 11. Bg5
{[%clk 0:03:07.9]} 11... h6 {[%clk 0:02:59.2]} 12. Bh4 {[%clk 0:03:08.6]} 12...
a6 {[%clk 0:02:56.7]} 13. a3 {[%clk 0:03:04.3]} 13... g5 {[%clk 0:02:48.5]} 14.
Bg3 {[%clk 0:02:49.9]} 14... Bg6 {[%clk 0:02:45.3]} 15. Ba2 {[%clk 0:02:46]}
15... Bxg3 {[%clk 0:02:42]} 16. fxg3 {[%clk 0:02:47.9]} 16... Qd6 {[%clk
0:02:43.9]} 17. g4 {[%clk 0:02:35]} 17... Rad8 {[%clk 0:02:33.9]} 18. Kh1 {[%clk
0:02:36.4]} 18... Kg7 {[%clk 0:02:30.3]} 19. Qb3 {[%clk 0:02:28.3]} 19... b5
{[%clk 0:02:16.5]} 20. d5 {[%clk 0:02:12.3]} 20... Ne5 {[%clk 0:02:16.1]} 21.
Nxe5 {[%clk 0:02:07]} 21... Rxe5 {[%clk 0:02:18]} 22. Rf2 {[%clk 0:02:01.4]}
22... Rde8 {[%clk 0:02:16.3]} 23. Raf1 {[%clk 0:01:55.3]} 23... Re1 {[%clk
0:02:14.9]} 24. Nd1 {[%clk 0:01:39.3]} 24... Ne4 {[%clk 0:01:36.7]} 0-1

[Event "*** Titled Tuesday Blitz"]
[Site "Chess.com"]
[Date "2019.08.06"]
[Round "10"]
[White "iLuusions"]
[Black "valeriocarnicelli"]
[Result "0-1"]
[WhiteElo "2543"]
[BlackElo "2453"]
[TimeControl "180+2"]
[EndTime "15:21:20 PDT"]
[Termination "valeriocarnicelli won by resignation"]

1. d4 {[%clk 0:03:00.6]} 1... d5 {[%clk 0:03:00.9]} 2. c4 {[%clk 0:03:02.5]}
2... c6 {[%clk 0:03:02.2]} 3. Nf3 {[%clk 0:03:03.7]} 3... Nf6 {[%clk 0:03:03.3]}
4. Nc3 {[%clk 0:03:05]} 4... dxc4 {[%clk 0:03:04.7]} 5. a4 {[%clk 0:03:05.8]}
5... Bf5 {[%clk 0:03:05.2]} 6. e3 {[%clk 0:03:06.8]} 6... e6 {[%clk 0:03:05.6]}
7. Bxc4 {[%clk 0:03:08]} 7... Bb4 {[%clk 0:03:06.6]} 8. O-O {[%clk 0:03:09.6]}
8... O-O {[%clk 0:03:07.5]} 9. Nh4 {[%clk 0:03:10]} 9... Nbd7 {[%clk 0:03:06.6]}
10. Nxf5 {[%clk 0:03:09.9]} 10... exf5 {[%clk 0:03:08.1]} 11. h3 {[%clk
0:03:10.2]} 11... g6 {[%clk 0:03:07.5]} 12. g4 {[%clk 0:03:03.7]} 12... fxg4
{[%clk 0:03:07.1]} 13. hxg4 {[%clk 0:03:05.6]} 13... c5 {[%clk 0:03:05.7]} 14.
dxc5 {[%clk 0:02:34.1]} 14... Nxc5 {[%clk 0:03:03.1]} 15. Nd5 {[%clk 0:02:35.3]}
15... Nxd5 {[%clk 0:02:53.9]} 16. Bxd5 {[%clk 0:02:24.4]} 16... Qh4 {[%clk
0:02:51.6]} 17. e4 {[%clk 0:02:11.7]} 17... Ne6 {[%clk 0:02:43.9]} 18. Qf3
{[%clk 0:02:08.6]} 18... Bd6 {[%clk 0:02:41.7]} 19. Qg2 {[%clk 0:02:08.3]} 19...
Nf4 {[%clk 0:02:38.5]} 20. Bxf4 {[%clk 0:02:06.4]} 20... Bxf4 {[%clk 0:02:39.6]}
21. Ra3 {[%clk 0:02:06.7]} 21... Rac8 {[%clk 0:02:34]} 22. Rh3 {[%clk
0:02:04.3]} 22... Qg5 {[%clk 0:02:35]} 23. b3 {[%clk 0:01:57]} 23... Rc2 {[%clk
0:02:33]} 24. Bxb7 {[%clk 0:01:52.7]} 24... Rd8 {[%clk 0:02:23.5]} 25. Bd5
{[%clk 0:01:52.8]} 25... Rdc8 {[%clk 0:02:23.2]} 26. Bc4 {[%clk 0:01:50.8]}
26... Rd8 {[%clk 0:02:22.9]} 27. Bd5 {[%clk 0:01:47.7]} 27... Rdc8 {[%clk
0:02:22.9]} 28. Rd1 {[%clk 0:01:14.8]} 28... Rc1 {[%clk 0:02:22.9]} 29. Rd3
{[%clk 0:01:15.8]} 29... R8c3 {[%clk 0:02:20.1]} 30. Rd4 {[%clk 0:00:53.7]}
30... Be5 {[%clk 0:02:17.7]} 31. Bxf7+ {[%clk 0:00:32.7]} 31... Kxf7 {[%clk
0:02:11.2]} 32. Rd5 {[%clk 0:00:24.9]} 32... Rxd1+ {[%clk 0:02:02.3]} 33. Rxd1
{[%clk 0:00:25.5]} 33... Rc1 {[%clk 0:01:59.9]} 34. Qf3+ {[%clk 0:00:26.7]}
34... Qf4 {[%clk 0:02:01]} 35. Qd3 {[%clk 0:00:16.7]} 35... Qxg4+ {[%clk
0:02:00.5]} 0-1

[Event "*** Titled Tuesday Blitz"]
[Site "Chess.com"]
[Date "2019.08.06"]
[Round "10"]
[White "Micki-taryan"]
[Black "Msb2"]
[Result "1-0"]
[WhiteElo "2957"]
[BlackElo "2854"]
[TimeControl "180+2"]
[EndTime "15:21:22 PDT"]
[Termination "Micki-taryan won by resignation"]

1. c4 {[%clk 0:03:01.4]} 1... e6 {[%clk 0:03:00.6]} 2. Nf3 {[%clk 0:03:02.5]}
2... d5 {[%clk 0:03:01.8]} 3. e3 {[%clk 0:03:02.4]} 3... Nf6 {[%clk 0:03:00.9]}
4. b3 {[%clk 0:03:03.5]} 4... c5 {[%clk 0:03:02]} 5. Bb2 {[%clk 0:03:04.8]} 5...
Nc6 {[%clk 0:03:03.3]} 6. cxd5 {[%clk 0:02:57.9]} 6... exd5 {[%clk 0:03:05.2]}
7. Bb5 {[%clk 0:02:57]} 7... Bd6 {[%clk 0:03:03.2]} 8. O-O {[%clk 0:02:57.5]}
8... O-O {[%clk 0:03:03.9]} 9. d4 {[%clk 0:02:54.9]} 9... cxd4 {[%clk
0:03:05.2]} 10. Nxd4 {[%clk 0:02:53]} 10... Bc7 {[%clk 0:03:06.5]} 11. Be2
{[%clk 0:02:47.7]} 11... Qd6 {[%clk 0:02:47.5]} 12. g3 {[%clk 0:02:48.3]} 12...
a6 {[%clk 0:02:48.6]} 13. Ba3 {[%clk 0:02:47.2]} 13... Qe5 {[%clk 0:02:48.5]}
14. Bxf8 {[%clk 0:02:47.4]} 14... Kxf8 {[%clk 0:02:48.5]} 15. Nc3 {[%clk
0:02:45.5]} 15... Bb6 {[%clk 0:02:43]} 16. Nxc6 {[%clk 0:02:37.6]} 16... bxc6
{[%clk 0:02:41]} 17. Rc1 {[%clk 0:02:36.4]} 17... Bh3 {[%clk 0:02:39.5]} 18. Re1
{[%clk 0:02:37.1]} 18... Ba7 {[%clk 0:02:14.2]} 19. Bf3 {[%clk 0:02:30.9]} 19...
h5 {[%clk 0:02:10.8]} 20. Na4 {[%clk 0:02:30.1]} 20... Qd6 {[%clk 0:02:10.7]}
21. Qc2 {[%clk 0:02:29.4]} 21... Nd7 {[%clk 0:01:46.6]} 22. Bg2 {[%clk
0:02:01.6]} 22... Bxg2 {[%clk 0:01:43.5]} 23. Kxg2 {[%clk 0:02:03.5]} 23... c5
{[%clk 0:01:43.8]} 24. Qh7 {[%clk 0:02:03.4]} 24... Qc6 {[%clk 0:00:56]} 25.
Qh8+ {[%clk 0:01:59.5]} 25... Ke7 {[%clk 0:00:55.9]} 26. Qxg7 {[%clk 0:02:01]}
26... Nf6 {[%clk 0:00:57.3]} 27. Qg5 {[%clk 0:01:57.8]} 27... Rg8 {[%clk
0:00:39.4]} 28. Qe5+ {[%clk 0:01:58.1]} 28... Kd7 {[%clk 0:00:40.8]} 29. Nxc5+
{[%clk 0:01:54.4]} 29... Bxc5 {[%clk 0:00:41.2]} 30. Rxc5 {[%clk 0:01:56.3]}
30... Qxc5 {[%clk 0:00:39.4]} 31. Qxf6 {[%clk 0:01:57.5]} 31... Qe7 {[%clk
0:00:35.9]} 32. Qxe7+ {[%clk 0:01:56]} 32... Kxe7 {[%clk 0:00:37.8]} 33. Rc1
{[%clk 0:01:57.3]} 33... Kd6 {[%clk 0:00:38.8]} 34. b4 {[%clk 0:01:57.9]} 34...
a5 {[%clk 0:00:37]} 35. b5 {[%clk 0:01:55.2]} 35... a4 {[%clk 0:00:38.2]} 36.
Rc6+ {[%clk 0:01:53]} 36... Kd7 {[%clk 0:00:36.8]} 37. Ra6 {[%clk 0:01:53.7]}
37... Rb8 {[%clk 0:00:38.6]} 38. Rxa4 {[%clk 0:01:50.5]} 38... Rxb5 {[%clk
0:00:40.2]} 39. Rh4 {[%clk 0:01:51.9]} 39... Ra5 {[%clk 0:00:40.3]} 40. Rxh5
{[%clk 0:01:53]} 40... Ke6 {[%clk 0:00:42.2]} 41. e4 {[%clk 0:01:52.3]} 1-0

[Event "*** Titled Tuesday Blitz"]
[Site "Chess.com"]
[Date "2019.08.06"]
[Round "10"]
[White "Blitzking642"]
[Black "S-Fazulyanov"]
[Result "0-1"]
[WhiteElo "2380"]
[BlackElo "2438"]
[TimeControl "180+2"]
[EndTime "15:21:25 PDT"]
[Termination "S-Fazulyanov won by resignation"]

1. d4 {[%clk 0:03:01.9]} 1... d5 {[%clk 0:03:00.3]} 2. c4 {[%clk 0:03:03.2]}
2... e6 {[%clk 0:03:01]} 3. Nc3 {[%clk 0:03:03.3]} 3... c6 {[%clk 0:03:01.4]} 4.
e4 {[%clk 0:02:59.9]} 4... dxe4 {[%clk 0:03:02]} 5. Nxe4 {[%clk 0:03:00.7]} 5...
Bb4+ {[%clk 0:03:03.1]} 6. Bd2 {[%clk 0:03:02.1]} 6... Qxd4 {[%clk 0:03:03.5]}
7. Bxb4 {[%clk 0:03:03.6]} 7... Qxe4+ {[%clk 0:03:05.2]} 8. Ne2 {[%clk
0:03:03.6]} 8... Nd7 {[%clk 0:03:04.6]} 9. Qd6 {[%clk 0:02:49.7]} 9... Qe5
{[%clk 0:03:04.4]} 10. Qd2 {[%clk 0:02:45.6]} 10... Ngf6 {[%clk 0:03:00.7]} 11.
O-O-O {[%clk 0:02:42.3]} 11... c5 {[%clk 0:02:46.6]} 12. Bc3 {[%clk 0:02:41.5]}
12... Qc7 {[%clk 0:02:45.4]} 13. Ng3 {[%clk 0:02:35.6]} 13... O-O {[%clk
0:02:43]} 14. h4 {[%clk 0:02:27.5]} 14... Ne5 {[%clk 0:02:37.2]} 15. h5 {[%clk
0:02:15.4]} 15... h6 {[%clk 0:02:33.9]} 16. Be2 {[%clk 0:02:07.3]} 16... b5
{[%clk 0:02:30.2]} 17. cxb5 {[%clk 0:02:05.8]} 17... Nd5 {[%clk 0:02:28.8]} 18.
Rh4 {[%clk 0:01:45.8]} 18... Bb7 {[%clk 0:02:26.6]} 19. f4 {[%clk 0:01:32.2]}
19... Nd7 {[%clk 0:02:26.7]} 20. Rg4 {[%clk 0:01:26]} 20... N7f6 {[%clk
0:02:25]} 21. Rh4 {[%clk 0:01:21.9]} 21... Nxc3 {[%clk 0:02:21]} 22. Qxc3 {[%clk
0:01:22.1]} 22... Rad8 {[%clk 0:02:20]} 23. Bd3 {[%clk 0:01:19.5]} 23... c4
{[%clk 0:02:15.6]} 24. Bc2 {[%clk 0:01:18.5]} 24... Rxd1+ {[%clk 0:02:15.9]} 25.
Bxd1 {[%clk 0:01:19.8]} 25... Bxg2 {[%clk 0:02:10.7]} 26. Ne2 {[%clk 0:01:17.9]}
26... Ne4 {[%clk 0:01:59.4]} 27. Qe3 {[%clk 0:01:15]} 27... Rd8 {[%clk
0:01:57.2]} 28. Bc2 {[%clk 0:01:14.3]} 28... Rd3 {[%clk 0:01:43]} 29. Qg1 {[%clk
0:00:51.1]} 29... Bf3 {[%clk 0:01:39.6]} 30. Nd4 {[%clk 0:00:46.3]} 30... Qc5
{[%clk 0:01:27.6]} 31. Nxf3 {[%clk 0:00:45.5]} 31... Rxf3 {[%clk 0:01:26.6]} 32.
Qd1 {[%clk 0:00:34.4]} 32... Qe3+ {[%clk 0:01:26.6]} 33. Kb1 {[%clk 0:00:33.2]}
33... Rf1 {[%clk 0:01:28.5]} 0-1

[Event "*** Titled Tuesday Blitz"]
[Site "Chess.com"]
[Date "2019.08.06"]
[Round "10"]
[White "K_A_S_T_O_R"]
[Black "GelmanAlexander"]
[Result "1-0"]
[WhiteElo "2782"]
[BlackElo "2573"]
[TimeControl "180+2"]
[EndTime "15:21:28 PDT"]
[Termination "K_A_S_T_O_R won by resignation"]

1. e4 {[%clk 0:03:01.9]} 1... c5 {[%clk 0:03:00.6]} 2. Nf3 {[%clk 0:03:02.9]}
2... e6 {[%clk 0:03:01.4]} 3. d4 {[%clk 0:03:04.3]} 3... cxd4 {[%clk 0:03:02.4]}
4. Nxd4 {[%clk 0:03:06.2]} 4... d6 {[%clk 0:03:03.9]} 5. c4 {[%clk 0:03:06.7]}
5... Nf6 {[%clk 0:03:02.3]} 6. Nc3 {[%clk 0:03:08.2]} 6... Be7 {[%clk 0:03:04]}
7. Be2 {[%clk 0:03:09.7]} 7... O-O {[%clk 0:03:05.2]} 8. O-O {[%clk 0:03:11.3]}
8... a6 {[%clk 0:03:06]} 9. Be3 {[%clk 0:03:12.6]} 9... b6 {[%clk 0:03:03.3]}
10. Qd2 {[%clk 0:03:13.7]} 10... Bb7 {[%clk 0:03:04.7]} 11. f3 {[%clk 0:03:15]}
11... Nbd7 {[%clk 0:03:05.9]} 12. a4 {[%clk 0:03:16]} 12... Rb8 {[%clk
0:03:06.2]} 13. Rfc1 {[%clk 0:03:03.8]} 13... h5 {[%clk 0:02:46.8]} 14. b4
{[%clk 0:02:59.6]} 14... a5 {[%clk 0:02:19.8]} 15. bxa5 {[%clk 0:02:57.3]} 15...
bxa5 {[%clk 0:02:20.8]} 16. Ndb5 {[%clk 0:02:58.8]} 16... Nc5 {[%clk 0:02:21]}
17. Rab1 {[%clk 0:02:59.2]} 17... Ba8 {[%clk 0:01:41.2]} 18. Rd1 {[%clk
0:02:39.7]} 18... Ne8 {[%clk 0:01:29.3]} 19. e5 {[%clk 0:02:35.5]} 19... d5
{[%clk 0:01:03.1]} 20. cxd5 {[%clk 0:02:34.5]} 20... exd5 {[%clk 0:01:04.5]} 21.
Qa2 {[%clk 0:02:33.4]} 21... Nc7 {[%clk 0:01:00.2]} 22. f4 {[%clk 0:02:26.3]}
22... Nxb5 {[%clk 0:00:47.8]} 23. Bxb5 {[%clk 0:02:27]} 23... Qc7 {[%clk
0:00:31.3]} 24. Rbc1 {[%clk 0:02:21.7]} 24... Rbc8 {[%clk 0:00:25.6]} 25. Nxd5
{[%clk 0:02:21.8]} 25... Bxd5 {[%clk 0:00:26.9]} 26. Rxd5 {[%clk 0:02:22.2]}
26... Rfd8 {[%clk 0:00:13.2]} 27. Rdxc5 {[%clk 0:02:17.5]} 27... Bxc5 {[%clk
0:00:10.9]} 28. Rxc5 {[%clk 0:02:18.4]} 28... Qxc5 {[%clk 0:00:05.8]} 29. Bxc5
{[%clk 0:02:18.6]} 29... Rxc5 {[%clk 0:00:07.7]} 30. Kf2 {[%clk 0:02:17]} 30...
Rcd5 {[%clk 0:00:07.8]} 31. Ke3 {[%clk 0:02:17.2]} 31... Rd1 {[%clk 0:00:05.8]}
32. Be2 {[%clk 0:02:17.2]} 32... Rc1 {[%clk 0:00:05.6]} 33. Bxh5 {[%clk
0:02:13.2]} 33... Rc3+ {[%clk 0:00:05.8]} 34. Kf2 {[%clk 0:02:13.6]} 34... Rd4
{[%clk 0:00:07.3]} 35. Qxf7+ {[%clk 0:02:13.2]} 35... Kh8 {[%clk 0:00:08.1]} 36.
Bg6 {[%clk 0:02:12.2]} 36... Rc2+ {[%clk 0:00:03.5]} 37. Bxc2 {[%clk 0:02:08.3]}
1-0

[Event "*** Titled Tuesday Blitz"]
[Site "Chess.com"]
[Date "2019.08.06"]
[Round "10"]
[White "Dhaydon19"]
[Black "ALEXJR20"]
[Result "1-0"]
[WhiteElo "2582"]
[BlackElo "2177"]
[TimeControl "180+2"]
[EndTime "15:21:37 PDT"]
[Termination "Dhaydon19 won on time"]

1. e4 {[%clk 0:03:01.8]} 1... c5 {[%clk 0:03:00.3]} 2. Nf3 {[%clk 0:03:02.7]}
2... Nc6 {[%clk 0:03:01.7]} 3. Bc4 {[%clk 0:03:02.9]} 3... e6 {[%clk 0:02:59.7]}
4. O-O {[%clk 0:03:03.8]} 4... d5 {[%clk 0:02:59.9]} 5. exd5 {[%clk 0:03:04.1]}
5... exd5 {[%clk 0:03:01.8]} 6. Bb5 {[%clk 0:03:05.9]} 6... Nf6 {[%clk
0:03:02.8]} 7. Re1+ {[%clk 0:03:07]} 7... Be6 {[%clk 0:03:03.1]} 8. d4 {[%clk
0:03:08.2]} 8... Bd6 {[%clk 0:02:56.3]} 9. Ng5 {[%clk 0:03:02.7]} 9... O-O
{[%clk 0:02:56.6]} 10. Rxe6 {[%clk 0:03:02.2]} 10... fxe6 {[%clk 0:02:50.8]} 11.
Nxe6 {[%clk 0:03:04.1]} 11... Qb8 {[%clk 0:01:43.3]} 12. Nxf8 {[%clk 0:03:00.5]}
12... Bxh2+ {[%clk 0:01:43.5]} 13. Kh1 {[%clk 0:02:49.7]} 13... Nxd4 {[%clk
0:01:44.3]} 14. Nxh7 {[%clk 0:02:40]} 14... Nxh7 {[%clk 0:01:21.8]} 15. Bd3
{[%clk 0:02:37.1]} 15... Nf6 {[%clk 0:01:10.5]} 16. Nc3 {[%clk 0:02:36.3]} 16...
Qe5 {[%clk 0:00:56.9]} 17. Be3 {[%clk 0:02:29]} 17... Kf7 {[%clk 0:00:50.4]} 18.
g3 {[%clk 0:02:11.7]} 18... Bxg3 {[%clk 0:00:46]} 19. Kg2 {[%clk 0:02:08]} 19...
Bf4 {[%clk 0:00:35.2]} 20. Bxd4 {[%clk 0:02:02.6]} 20... cxd4 {[%clk 0:00:35.6]}
21. Ne2 {[%clk 0:01:55.8]} 21... Rh8 {[%clk 0:00:35.2]} 22. Ng3 {[%clk
0:01:47.9]} 22... Ne4 {[%clk 0:00:23.8]} 23. Qf3 {[%clk 0:01:47.8]} 23... g5
{[%clk 0:00:06.1]} 24. Nxe4 {[%clk 0:01:38.7]} 24... Rh2+ {[%clk 0:00:04]} 25.
Kf1 {[%clk 0:01:39.6]} 25... dxe4 {[%clk 0:00:03.2]} 26. Bxe4 {[%clk 0:01:40.1]}
26... b6 {[%clk 0:00:02.8]} 27. Re1 {[%clk 0:01:40.3]} 27... Kf6 {[%clk
0:00:03.3]} 28. Bd3 {[%clk 0:01:39.8]} 28... Qa5 {[%clk 0:00:02.5]} 29. Qe4
{[%clk 0:01:38.3]} 1-0